{"text_format":"1","workbook":"xlsx","n_sheets":5,"sheets":["Dose metrics (animal)","Dose metrics (human)","HEC","MPPD report (animal)","MPPD report (human)"],"not_rendered":{"charts":0,"images":0,"macros":0,"external_links":0,"defined_names":0,"comments":0,"pivot_tables":0},"unopened":[],"bounds":{"document_bytes":16777216,"sheet_cells":100000,"rows_first":2000,"rows_last":500,"rows_between":2000,"halvings":0,"cell_chars":16384,"cell_head_chars":4096},"cells_cut":0,"cells_raw":0,"read":"whole","date_system":"1900"}

{"sheet":"Dose metrics (animal)","index":0,"n_rows":29,"n_cols":10,"rows_kept":29,"cut":false,"hidden":false,"merged":[[21,0,21,2],[0,0,0,2],[0,4,0,9],[8,0,8,2],[15,0,15,2]]}
["Population considerations",null,null,null,"Dose metrics"]
[]
["Lung geometry:",{"$f":"CONCATENATE(VLOOKUP(\"Geometry:\",'MPPD report (animal)'!$B:$F,2,FALSE),\" \",VLOOKUP(\"Geometry:\",'MPPD report (animal)'!$B:$F,3,FALSE),\" \",VLOOKUP(\"Geometry:\",'MPPD report (animal)'!$B:$F,4,FALSE))","v":{"$error":"#N/A"}},null,null,"Region","ET","TB","PU","TB+PU","ET+TB+PU"]
["Model:",{"$f":"CONCATENATE(VLOOKUP(\"Strain:\",'MPPD report (animal)'!$A:$F,2,FALSE),\" \",VLOOKUP(\"Strain:\",'MPPD report (animal)'!$A:$F,3,FALSE),\" \",VLOOKUP(\"Strain:\",'MPPD report (animal)'!$A:$F,4,FALSE))","v":{"$error":"#N/A"}},null,null,"Deposition fraction",{"$f":"VLOOKUP(\"ET\",'MPPD report (animal)'!$B$1:$E$100,4,FALSE)","v":{"$error":"#N/A"}},{"$f":"VLOOKUP(\"TB\",'MPPD report (animal)'!$B$1:$E$100,4,FALSE)","v":{"$error":"#N/A"}},{"$f":"VLOOKUP(\"pulmonary\",'MPPD report (animal)'!$B$1:$E$100,4,FALSE)","v":{"$error":"#N/A"}},{"$f":"G4+H4","v":{"$error":"#N/A"}},{"$f":"SUM(F4:H4)","v":{"$error":"#N/A"}}]
["TLC (ml):",{"$f":"VLOOKUP(\"TLC\",'MPPD report (animal)'!$A:$F,3,FALSE)","v":{"$error":"#N/A"}},null,null,"Deposited mass rate (µg/min)",{"$f":"INDIRECT(CONCATENATE(\"'MPPD report (animal)'!\",ADDRESS(CELL(\"row\",INDEX('MPPD report (animal)'!$A$1:$A$100,MATCH(\"ET\",'MPPD report (animal)'!$B$1:$B$100,0)))+6,5)))","v":{"$error":"#N/A"}},{"$f":"INDIRECT(CONCATENATE(\"'MPPD report (animal)'!\",ADDRESS(CELL(\"row\",INDEX('MPPD report (animal)'!$A$1:$A$100,MATCH(\"ET\",'MPPD report (animal)'!$B$1:$B$100,0)))+7,5)))","v":{"$error":"#N/A"}},{"$f":"INDIRECT(CONCATENATE(\"'MPPD report (animal)'!\",ADDRESS(CELL(\"row\",INDEX('MPPD report (animal)'!$A$1:$A$100,MATCH(\"ET\",'MPPD report (animal)'!$B$1:$B$100,0)))+8,5)))","v":{"$error":"#N/A"}},{"$f":"G5+H5","v":{"$error":"#N/A"}},{"$f":"SUM(F5:H5)","v":{"$error":"#N/A"}}]
["FRC (ml):",{"$f":"VLOOKUP(\"FRC\",'MPPD report (animal)'!$A:$F,3,FALSE)","v":{"$error":"#N/A"}},null,null,"Surface area SA (cm2)-normalizing factor",{"$f":"INDIRECT(CONCATENATE(\"'MPPD report (animal)'!\",ADDRESS(CELL(\"row\",INDEX('MPPD report (animal)'!$A$1:$A$100,MATCH(\"Extrathoracic\",'MPPD report (animal)'!$A$1:$A$100,0))),4)))","v":{"$error":"#N/A"}},{"$f":"INDIRECT(CONCATENATE(\"'MPPD report (animal)'!\",ADDRESS(CELL(\"row\",INDEX('MPPD report (animal)'!$A$1:$A$100,MATCH(\"Extrathoracic\",'MPPD report (animal)'!$A$1:$A$100,0)))+1,4)))","v":{"$error":"#N/A"}},{"$f":"INDIRECT(CONCATENATE(\"'MPPD report (animal)'!\",ADDRESS(CELL(\"row\",INDEX('MPPD report (animal)'!$A$1:$A$100,MATCH(\"Extrathoracic\",'MPPD report (animal)'!$A$1:$A$100,0)))+2,4)))","v":{"$error":"#N/A"}},{"$f":"G6+H6","v":{"$error":"#N/A"}},{"$f":"SUM(F6:H6)","v":{"$error":"#N/A"}}]
["Body weight (g)",{"$f":"VLOOKUP(\"Weight:\",'MPPD report (animal)'!$B:$F,2,FALSE)","v":{"$error":"#N/A"}},null,null,"Deposited mass rate per regional SA (µg/min/cm2)",{"$f":"F5/F6","v":{"$error":"#N/A"}},{"$f":"G5/G6","v":{"$error":"#N/A"}},{"$error":"#N/A"},{"$error":"#N/A"},{"$error":"#N/A"}]
[null,null,null,null,"Deposited dose (µg)",{"$f":"F5*60*$B$29","v":{"$error":"#N/A"}},{"$f":"G5*60*$B$29","v":{"$error":"#N/A"}},{"$error":"#N/A"},{"$error":"#N/A"},{"$error":"#N/A"}]
["Exposure conditions and activity characteristics",null,null,null,"Deposited dose per SA (µg/cm2)",{"$f":"F8/F6","v":{"$error":"#N/A"}},{"$f":"G8/G6","v":{"$error":"#N/A"}},{"$f":"H8/H6","v":{"$error":"#N/A"}},{"$f":"I8/I6","v":{"$error":"#N/A"}},{"$error":"#N/A"}]
[]
["Aerosol conc. (mg/m3):",{"$f":"VLOOKUP(\"Aerosol\",'MPPD report (animal)'!$A1:$F50,3,FALSE)","v":{"$error":"#N/A"}},null,null,"Software version:    ",{"$f":"IF(ISBLANK('MPPD report (animal)'!A1),CONCATENATE('MPPD report (animal)'!A2,\" \",'MPPD report (animal)'!B2,\" \",'MPPD report (animal)'!C2,\" \",'MPPD report (animal)'!D2),CONCATENATE('MPPD report (animal)'!A1,\" \",'MPPD report (animal)'!B1,\" \",'MPPD report (animal)'!C1,\" \",'MPPD report (animal)'!D1))","v":"   "}]
["Breathing frequency (/min):",{"$f":"VLOOKUP(\"Frequency:\",'MPPD report (animal)'!$B1:$D50,2,FALSE)","v":{"$error":"#N/A"}}]
["Tidal volume (ml):",{"$f":"VLOOKUP(\"Tidal\",'MPPD report (animal)'!$E2:$G51,3,FALSE)","v":{"$error":"#N/A"}}]
["Breathing scenario:",{"$f":"CONCATENATE(VLOOKUP(\"scenario:\",'MPPD report (animal)'!$B3:$C52,2,FALSE),\" \",VLOOKUP(\"scenario:\",'MPPD report (animal)'!$B3:$D52,3,FALSE))","v":{"$error":"#N/A"}}]
[]
["Particle properties"]
[]
["Mass density (g/cm3):",{"$f":"VLOOKUP(\"density:\",'MPPD report (animal)'!$B7:$C56,2,FALSE)","v":{"$error":"#N/A"}}]
["Diameter (µm):",{"$f":"VLOOKUP(\"Diameter:\",'MPPD report (animal)'!$A8:$B57,2,FALSE)","v":{"$error":"#N/A"}}]
["GSD:",{"$f":"VLOOKUP(\"(GSD):\",'MPPD report (animal)'!$B9:$C58,2,FALSE)","v":{"$error":"#N/A"}}]
[]
["Adjust exposure duration in yellow cells below"]
[]
["Hours/day",1]
["Days/week",1]
["weeks/year",1]
["Years",1]
[]
["Total exposure (hours)",{"$f":"B24*B25*B26*B27","v":1}]

{"sheet":"Dose metrics (human)","index":1,"n_rows":29,"n_cols":10,"rows_kept":29,"cut":false,"hidden":false,"merged":[[21,0,21,2],[0,4,0,9],[8,0,8,2],[0,0,0,2],[15,0,15,2]]}
["Population considerations",null,null,null,"Dose metrics"]
[]
["Lung geometry:",{"$f":"CONCATENATE(VLOOKUP(\"Geometry:\",'MPPD report (human)'!$B:$F,2,FALSE),\" \",VLOOKUP(\"Geometry:\",'MPPD report (human)'!$B:$F,3,FALSE),\" \",VLOOKUP(\"Geometry:\",'MPPD report (human)'!$B:$F,4,FALSE))","v":{"$error":"#N/A"}},null,null,"Region","ET","TB","PU","TB+PU","ET+TB+PU"]
["Model:",{"$f":"VLOOKUP(\"Model:\",'MPPD report (human)'!$A:$F,2,FALSE)","v":{"$error":"#N/A"}},null,null,"Deposition fraction",{"$f":"VLOOKUP(\"ET\",'MPPD report (human)'!$B$1:$E$100,4,FALSE)","v":{"$error":"#N/A"}},{"$f":"VLOOKUP(\"TB\",'MPPD report (human)'!$B$1:$E$100,4,FALSE)","v":{"$error":"#N/A"}},{"$f":"VLOOKUP(\"pulmonary\",'MPPD report (human)'!$B$1:$E$100,4,FALSE)","v":{"$error":"#N/A"}},{"$f":"G4+H4","v":{"$error":"#N/A"}},{"$f":"SUM(F4:H4)","v":{"$error":"#N/A"}}]
["TLC (ml):",{"$f":"VLOOKUP(\"TLC\",'MPPD report (human)'!$A:$F,3,FALSE)","v":{"$error":"#N/A"}},null,null,"Deposited mass rate (µg/min)",{"$f":"INDIRECT(CONCATENATE(\"'MPPD report (human)'!\",ADDRESS(CELL(\"row\",INDEX('MPPD report (human)'!$A$1:$A$100,MATCH(\"ET\",'MPPD report (human)'!$B$1:$B$100,0)))+6,5)))","v":{"$error":"#N/A"}},{"$f":"INDIRECT(CONCATENATE(\"'MPPD report (human)'!\",ADDRESS(CELL(\"row\",INDEX('MPPD report (human)'!$A$1:$A$100,MATCH(\"ET\",'MPPD report (human)'!$B$1:$B$100,0)))+7,5)))","v":{"$error":"#N/A"}},{"$f":"INDIRECT(CONCATENATE(\"'MPPD report (human)'!\",ADDRESS(CELL(\"row\",INDEX('MPPD report (human)'!$A$1:$A$100,MATCH(\"ET\",'MPPD report (human)'!$B$1:$B$100,0)))+8,5)))","v":{"$error":"#N/A"}},{"$f":"INDIRECT(CONCATENATE(\"'MPPD report (human)'!\",ADDRESS(CELL(\"row\",INDEX('MPPD report (human)'!$A$1:$A$100,MATCH(\"ET\",'MPPD report (human)'!$B$1:$B$100,0)))+9,5)))","v":{"$error":"#N/A"}},{"$f":"INDIRECT(CONCATENATE(\"'MPPD report (human)'!\",ADDRESS(CELL(\"row\",INDEX('MPPD report (human)'!$A$1:$A$100,MATCH(\"ET\",'MPPD report (human)'!$B$1:$B$100,0)))+10,5)))","v":{"$error":"#N/A"}}]
["FRC (ml):",{"$f":"VLOOKUP(\"FRC\",'MPPD report (human)'!$A:$F,3,FALSE)","v":{"$error":"#N/A"}},null,null,"Surface area SA (cm2)-normalizing factor",{"$f":"INDIRECT(CONCATENATE(\"'MPPD report (human)'!\",ADDRESS(CELL(\"row\",INDEX('MPPD report (human)'!$A$1:$A$100,MATCH(\"Extrathoracic\",'MPPD report (human)'!$A$1:$A$100,0))),4)))","v":{"$error":"#N/A"}},{"$f":"INDIRECT(CONCATENATE(\"'MPPD report (human)'!\",ADDRESS(CELL(\"row\",INDEX('MPPD report (human)'!$A$1:$A$100,MATCH(\"Extrathoracic\",'MPPD report (human)'!$A$1:$A$100,0)))+1,4)))","v":{"$error":"#N/A"}},{"$f":"INDIRECT(CONCATENATE(\"'MPPD report (human)'!\",ADDRESS(CELL(\"row\",INDEX('MPPD report (human)'!$A$1:$A$100,MATCH(\"Extrathoracic\",'MPPD report (human)'!$A$1:$A$100,0)))+2,4)))","v":{"$error":"#N/A"}},{"$f":"G6+H6","v":{"$error":"#N/A"}},{"$f":"SUM(F6:H6)","v":{"$error":"#N/A"}}]
["Enter body weight (kg)",null,null,null,"Deposited mass rate per regional SA (µg/min/cm2)",{"$f":"F5/F6","v":{"$error":"#N/A"}},{"$f":"G5/G6","v":{"$error":"#N/A"}},{"$error":"#N/A"},{"$error":"#N/A"},{"$error":"#N/A"}]
[null,null,null,null,"Deposited dose (µg)",{"$f":"F5*60*$B$29","v":{"$error":"#N/A"}},{"$f":"G5*60*$B$29","v":{"$error":"#N/A"}},{"$error":"#N/A"},{"$error":"#N/A"},{"$error":"#N/A"}]
["Exposure conditions and activity characteristics",null,null,null,"Deposited dose per SA (µg/cm2)",{"$f":"F8/F6","v":{"$error":"#N/A"}},{"$f":"G8/G6","v":{"$error":"#N/A"}},{"$error":"#N/A"},{"$error":"#N/A"},{"$error":"#N/A"}]
[]
["Aerosol conc. (mg/m3):",{"$f":"VLOOKUP(\"Aerosol\",'MPPD report (human)'!$A1:$F50,3,FALSE)","v":{"$error":"#N/A"}},null,null,"Software version:    ",{"$f":"IF(ISBLANK('MPPD report (human)'!A1),CONCATENATE('MPPD report (human)'!A2,\" \",'MPPD report (human)'!B2,\" \",'MPPD report (human)'!C2,\" \",'MPPD report (human)'!D2),CONCATENATE('MPPD report (human)'!A1,\" \",'MPPD report (human)'!B1,\" \",'MPPD report (human)'!C1,\" \",'MPPD report (human)'!D1))","v":"   "}]
["Breathing frequency (/min):",{"$f":"VLOOKUP(\"Frequency:\",'MPPD report (human)'!$B1:$D50,2,FALSE)","v":{"$error":"#N/A"}}]
["Tidal volume (ml):",{"$f":"VLOOKUP(\"Tidal\",'MPPD report (human)'!$E2:$G51,3,FALSE)","v":{"$error":"#N/A"}}]
["Breathing scenario:",{"$f":"CONCATENATE(VLOOKUP(\"scenario:\",'MPPD report (human)'!$B3:$C52,2,FALSE),\" \",VLOOKUP(\"scenario:\",'MPPD report (human)'!$B3:$D52,3,FALSE))","v":{"$error":"#N/A"}}]
[]
["Particle properties"]
[]
["Mass density (g/cm3):",{"$f":"VLOOKUP(\"density:\",'MPPD report (human)'!$B7:$C56,2,FALSE)","v":{"$error":"#N/A"}}]
["Diameter (µm):",{"$f":"VLOOKUP(\"Diameter:\",'MPPD report (human)'!$A8:$B57,2,FALSE)","v":{"$error":"#N/A"}}]
["GSD:",{"$f":"VLOOKUP(\"(GSD):\",'MPPD report (human)'!$B9:$C58,2,FALSE)","v":{"$error":"#N/A"}}]
[]
["Adjust exposure duration in yellow cells below"]
[]
["Hours/day",1]
["Days/week",1]
["weeks/year",1]
["Years",1]
[]
["Total exposure (hours)",{"$f":"B24*B25*B26*B27","v":1}]

{"sheet":"HEC","index":2,"n_rows":10,"n_cols":6,"rows_kept":10,"cut":false,"hidden":false,"merged":[[0,0,0,5]]}
["DEPDAF and HEC calculations"]
[]
[null,"ET","TB","PU","TB+PU","ET+TB+PU"]
["DEP DAF",{"$f":"'Dose metrics (animal)'!F9/'Dose metrics (human)'!F9","v":{"$error":"#N/A"}},{"$f":"'Dose metrics (animal)'!G9/'Dose metrics (human)'!G9","v":{"$error":"#N/A"}},{"$f":"'Dose metrics (animal)'!H9/'Dose metrics (human)'!H9","v":{"$error":"#N/A"}},{"$f":"'Dose metrics (animal)'!I9/'Dose metrics (human)'!I9","v":{"$error":"#N/A"}},{"$f":"'Dose metrics (animal)'!J9/'Dose metrics (human)'!J9","v":{"$error":"#N/A"}}]
["Regional HEC (mg/m3)",{"$f":"B4*$B$10","v":{"$error":"#N/A"}},{"$f":"C4*$B$10","v":{"$error":"#N/A"}},{"$f":"D4*$B$10","v":{"$error":"#N/A"}},{"$f":"E4*$B$10","v":{"$error":"#N/A"}},{"$f":"F4*$B$10","v":{"$error":"#N/A"}}]
[]
["DEP SYS DAF",{"$f":"'Dose metrics (animal)'!J8/'Dose metrics (human)'!J8*POWER('Dose metrics (human)'!$B$7*1000,0.75)/POWER('Dose metrics (animal)'!$B$7,0.75)","v":{"$error":"#N/A"}}]
["Systemic HEC (mg/m3)",{"$f":"B7*$B$10","v":{"$error":"#N/A"}}]
[]
["Enter NOAEL, LOAEL, or Exp. Conc. (mg/m3):"]

{"sheet":"MPPD report (animal)","index":3,"n_rows":0,"n_cols":0,"rows_kept":0,"cut":false,"hidden":false,"merged":[]}

{"sheet":"MPPD report (human)","index":4,"n_rows":0,"n_cols":0,"rows_kept":0,"cut":false,"hidden":false,"merged":[]}